[Event "HUN-ch Rapid 2018"]
[Site "Ajka"]
[Date "2018.07.22"]
[Round "13"]
[White "Csiszar, Csaba"]
[Black "Szalanczi, Emil"]
[Result "1-0"]
[ECO "D97"]
[WhiteElo "2432"]
[BlackElo "2214"]
[Annotator "NA"]
[PlyCount "171"]
[EventDate "2018.07.20"]
[EventType "swiss"]
[EventCountry "HUN"]
[SourceTitle "playchess.com"]
[Source "ChessBase"]
[SourceQuality "1"]
[TimeControl "1200+5"]

1. d4 {[%emt 0:00:01]} Nf6 {[%emt 0:00:06]} 2. Nf3 {[%emt 0:00:03]} g6 {[%emt 0:00:01]} 3. c4 {[%emt 0:00:03]} Bg7 {[%emt 0:00:01]} 4. Nc3 {[%emt 0:00:01]} d5 {[%emt 0:00:02]} 5. Qb3 {[%emt 0:00:16]} dxc4 {[%emt 0:00:02]} 6. Qxc4 {[%emt 0:00:02]} O-O {[%emt 0:00:02]} 7. e4 {[%emt 0:00:03]} a6 {[%emt 0:00:01]} 8. e5 {[%emt 0:00:15]} Nfd7 {[%emt 0:00:09]} 9. Be3 {[%emt 0:00:53]} Nb6 {[%emt 0:00:12]} 10. Qc5 {[%emt 0:01:00]} Be6 {[%emt 0:00:37]} 11. b3 {[%emt 0:00:50]} Nc6 {[%emt 0:00:47]} 12. Rd1 {[%emt 0:00:17]} Bd5 {[%emt 0:00:47]} 13. Be2 {[%emt 0:00:20]} e6 {[%emt 0:00:38]} 14. O-O {[%emt 0:00:02]} Re8 {[%emt 0:00:24]} 15. Qa3 {[%emt 0:00:05]} h6 {[%emt 0:00:24]} 16. Qc1 {[%emt 0:00:17]} Kh7 {[%emt 0:00:03]} 17. h4 {[%emt 0:00:23]} Ne7 {[%emt 0:00:08]} 18. h5 {[%emt 0:00:10]} Nf5 {[%emt 0:00:07]} 19. Bf4 {[%emt 0:01:23]} Rc8 {[%emt 0:00:25]} 20. b4 {[%emt 0:00:48]} Qe7 {[%emt 0:00:10]} 21. a3 {[%emt 0:00:06]} Red8 {[%emt 0:00:22]} 22. Nxd5 {[%emt 0:00:42]} Nxd5 {[%emt 0:00:08]} 23. Bd2 {[%emt 0:00:43]} c6 {[%emt 0:01:00]} 24. Qc2 {[%emt 0:00:35]} Rg8 {[%emt 0:00:52]} 25. Bd3 {[%emt 0:00:22]} Kh8 {[%emt 0:00:14]} 26. g3 {[%emt 0:00:05]} Qd7 {[%emt 0:00:33]} 27. Kg2 {[%emt 0:00:08]} g5 {[%emt 0:00:13]} 28. g4 {[%emt 0:00:44]} Nfe7 {[%emt 0:00:58]} 29. Bc4 {[%emt 0:00:40]} f5 {[%emt 0:00:46]} 30. exf6 {[%emt 0:00:31]} Bxf6 {[%emt 0:00:03]} 31. Ne5 {[%emt 0:00:10]} Bxe5 {[%emt 0:00:11]} 32. dxe5 {[%emt 0:00:01]} Rcf8 {[%emt 0:00:15]} 33. Ba2 {[%emt 0:00:17]} Rg7 {[%emt 0:00:08]} 34. Bb1 {[%emt 0:00:27]} Rgf7 {[%emt 0:00:30]} 35. f3 {[%emt 0:01:34]} Qc7 {[%emt 0:00:20]} 36. Rde1 {[%emt 0:00:18]} Qb6 {[%emt 0:00:26]} 37. Re2 {[%emt 0:01:06]} Kg8 {[%emt 0:01:44]} 38. Ba2 {[%emt 0:01:19]} Rg7 {[%emt 0:00:38]} 39. a4 {[%emt 0:01:06]} Rff7 {[%emt 0:00:42]} 40. Qc4 {[%emt 0:00:16]} Rf8 {[%emt 0:00:27]} 41. Bb1 {[%emt 0:00:04]} Rgf7 {[%emt 0:00:30]} 42. Be4 {[%emt 0:00:02]} Rg7 {[%emt 0:00:06]} 43. Rb1 {[%emt 0:00:05]} Rgf7 {[%emt 0:00:24]} 44. Rb3 {[%emt 0:00:25]} Rf4 {[%emt 0:00:26]} 45. Kh2 {[%emt 0:00:52]} R4f7 {[%emt 0:00:16]} 46. Be1 {[%emt 0:00:51]} Qc7 {[%emt 0:00:12]} 47. Bg3 {[%emt 0:00:10]} Kg7 {[%emt 0:00:21]} 48. Rb1 {[%emt 0:00:44]} Qb6 {[%emt 0:00:34]} 49. Bf2 {[%emt 0:00:01]} Qc7 {[%emt 0:00:03]} 50. Bg3 {[%emt 0:00:09]} Qb6 {[%emt 0:00:02]} 51. Rb3 {[%emt 0:00:09]} Qc7 {[%emt 0:00:07]} 52. Kg2 {[%emt 0:00:06]} Qb6 {[%emt 0:00:04]} 53. Kh1 {[%emt 0:00:21]} Qc7 {[%emt 0:00:07]} 54. Qc5 {[%emt 0:00:06]} Rd8 {[%emt 0:00:28]} 55. a5 {[%emt 0:00:19]} Qd7 {[%emt 0:00:09]} 56. Rd3 {[%emt 0:00:07]} Qc7 {[%emt 0:00:17]} 57. Qc4 {[%emt 0:00:01]} Rdf8 {[%emt 0:00:06]} 58. Qd4 {[%emt 0:00:05]} Qd7 {[%emt 0:00:43]} 59. Rc2 {[%emt 0:00:04]} Qe8 {[%emt 0:00:09]} 60. Qc5 {[%emt 0:00:02]} Qb8 {[%emt 0:00:12]} 61. Rb3 {[%emt 0:00:12]} Qd8 {[%emt 0:00:25]} 62. Re2 {[%emt 0:00:03]} Qb8 {[%emt 0:00:02]} 63. Qd6 {[%emt 0:00:03]} Qc8 {[%emt 0:00:07]} 64. Kh2 {[%emt 0:00:05]} Rd8 65. Qc5 Rdf8 {[%emt 0:00:04]} 66. Qc4 {[%emt 0:00:09]} Qd7 {[%emt 0:00:06]} 67. Bf2 {[%emt 0:00:03]} Nf4 {[%emt 0:00:12]} 68. Ra2 {[%emt 0:00:20]} Ned5 {[%emt 0:00:07]} 69. Bc5 {[%emt 0:00:03]} Rd8 {[%emt 0:00:09]} 70. Bd6 {[%emt 0:00:01]} Nc7 {[%emt 0:00:22]} 71. Bg6 {[%emt 0:00:19]} Nb5 {[%emt 0:00:16]} 72. Bxf7 Qxf7 {[%emt 0:00:02]} 73. Rd2 {[%emt 0:00:06]} Nd5 {[%emt 0:00:03]} 74. Bc5 {[%emt 0:00:17]} Rd7 {[%emt 0:00:09]} 75. Rc2 {[%emt 0:00:14]} Rd8 {[%emt 0:00:29]} 76. Rd3 {[%emt 0:00:06]} Qc7 {[%emt 0:00:13]} 77. Qe4 Qf7 {[%emt 0:00:05]} 78. Bf2 {[%emt 0:00:22]} Rf8 {[%emt 0:00:18]} 79. Bg3 {[%emt 0:00:05]} Qe8 {[%emt 0:00:15]} 80. Rcd2 {[%emt 0:00:08]} Qf7 {[%emt 0:00:13]} 81. Kg1 {[%emt 0:00:07]} Rg8 {[%emt 0:00:14]} 82. Rf2 {[%emt 0:00:05]} Rf8 {[%emt 0:00:02]} 83. Kh2 {[%emt 0:00:03]} Qe8 {[%emt 0:00:08]} 84. f4 {[%emt 0:00:01]} gxf4 {[%emt 0:00:08]} 85. Bxf4 {[%emt 0:00:03]} Nbc7 {[%emt 0:00:07]} 86. Bxh6+ {[%emt 0:00:07]} 1-0

[Event "HUN-ch Rapid 2018"]
[Site "Ajka"]
[Date "2018.07.22"]
[Round "13"]
[White "Mihok, Oliver"]
[Black "Vertetics, Attila"]
[Result "1/2-1/2"]
[ECO "B11"]
[WhiteElo "2426"]
[BlackElo "2506"]
[Annotator "ChessBase"]
[PlyCount "84"]
[EventDate "2018.07.20"]
[EventType "swiss"]
[EventCountry "HUN"]
[SourceTitle "playchess.com"]
[Source "ChessBase"]
[SourceQuality "1"]
[TimeControl "1200+5"]

1. e4 {[%emt 0:00:03]} c6 {[%emt 0:00:06]} 2. Nc3 {[%emt 0:00:04]} d5 {[%emt 0:00:03]} 3. Nf3 {[%emt 0:00:01]} Bg4 {[%emt 0:00:04]} 4. h3 {[%emt 0:00:02]} Bxf3 {[%emt 0:00:04]} 5. Qxf3 {[%emt 0:00:02]} e6 {[%emt 0:00:15]} 6. d4 {[%emt 0:00:06]} Nf6 {[%emt 0:00:17]} 7. Bd3 {[%emt 0:00:05]} dxe4 {[%emt 0:00:17]} 8. Nxe4 {[%emt 0:00:03]} Nxe4 {[%emt 0:00:06]} 9. Qxe4 {[%emt 0:00:13]} Nd7 {[%emt 0:00:23]} 10. c3 {[%emt 0:00:29]} Nf6 {[%emt 0:00:14]} 11. Qe2 {[%emt 0:00:03]} Bd6 {[%emt 0:00:08]} 12. O-O {[%emt 0:00:26]} Qc7 {[%emt 0:00:04]} 13. a4 {[%emt 0:01:50]} Bh2+ {[%emt 0:00:09]} 14. Kh1 {[%emt 0:00:01]} Bf4 {[%emt 0:00:02]} 15. Bxf4 {[%emt 0:00:26]} Qxf4 {[%emt 0:00:01]} 16. a5 {[%emt 0:00:07]} O-O {[%emt 0:02:08]} 17. g3 {[%emt 0:02:52]} Qc7 {[%emt 0:00:06]} 18. Qe5 {[%emt 0:00:26]} Rac8 {[%emt 0:01:03]} 19. Rfd1 {[%emt 0:01:09]} Rfd8 {[%emt 0:00:05]} 20. Be2 {[%emt 0:02:26]} Qe7 {[%emt 0:05:54]} 21. Bf3 {[%emt 0:00:26]} Qc7 {[%emt 0:00:04]} 22. Qc5 {[%emt 0:02:49]} Nd7 {[%emt 0:00:31]} 23. Qb4 {[%emt 0:00:30]} Nf6 {[%emt 0:00:10]} 24. Kg2 {[%emt 0:00:15]} Nd5 {[%emt 0:01:24]} 25. Qc5 {[%emt 0:00:17]} a6 {[%emt 0:00:06]} 26. Ra3 {[%emt 0:01:15]} Qe7 {[%emt 0:01:18]} 27. Rb3 {[%emt 0:01:14]} Rd7 {[%emt 0:00:03]} 28. c4 {[%emt 0:00:49]} Nf6 {[%emt 0:00:04]} 29. Qxe7 {[%emt 0:00:31]} Rxe7 {[%emt 0:00:01]} 30. d5 {[%emt 0:00:41]} exd5 {[%emt 0:00:03]} 31. cxd5 {[%emt 0:00:01]} cxd5 {[%emt 0:00:23]} 32. Bxd5 {[%emt 0:00:02]} Nxd5 {[%emt 0:00:18]} 33. Rxd5 {[%emt 0:00:01]} g6 {[%emt 0:00:03]} 34. Rd2 {[%emt 0:00:45]} Rc5 {[%emt 0:00:09]} 35. Rd8+ {[%emt 0:00:02]} Kg7 {[%emt 0:00:01]} 36. Rb8 {[%emt 0:00:01]} Rxa5 {[%emt 0:00:24]} 37. R8xb7 {[%emt 0:00:02]} Rxb7 {[%emt 0:00:13]} 38. Rxb7 {[%emt 0:00:01]} Ra2 {[%emt 0:00:01]} 39. Rb6 {[%emt 0:00:10]} a5 {[%emt 0:00:02]} 40. h4 {[%emt 0:00:10]} a4 {[%emt 0:00:04]} 41. Ra6 {[%emt 0:00:11]} Rxb2 {[%emt 0:00:02]} 42. Rxa4 {[%emt 0:00:02]} h5 {[%emt 0:00:02]} 1/2-1/2

[Event "HUN-ch Rapid 2018"]
[Site "Ajka"]
[Date "2018.07.22"]
[Round "13"]
[White "Dankhazi, Andras"]
[Black "Kormos, Adam"]
[Result "1-0"]
[ECO "A41"]
[WhiteElo "2361"]
[BlackElo "2201"]
[Annotator "NA"]
[PlyCount "121"]
[EventDate "2018.07.20"]
[EventType "swiss"]
[EventCountry "HUN"]
[SourceTitle "playchess.com"]
[Source "ChessBase"]
[SourceQuality "1"]
[TimeControl "1200+5"]

1. d4 {[%emt 0:00:01]} d6 {[%emt 0:00:05]} 2. Nf3 {[%emt 0:00:08]} Bg4 {[%emt 0:00:03]} 3. c4 {[%emt 0:00:06]} Nd7 {[%emt 0:00:04]} 4. g3 {[%emt 0:00:20]} Bxf3 {[%emt 0:00:23]} 5. exf3 {[%emt 0:00:01]} g6 {[%emt 0:00:01]} 6. Nc3 {[%emt 0:00:46]} c6 {[%emt 0:00:05]} 7. Be3 {[%emt 0:00:30]} Bg7 {[%emt 0:00:01]} 8. Qd2 {[%emt 0:00:00]} a6 {[%emt 0:00:31]} 9. d5 {[%emt 0:00:48]} c5 {[%emt 0:01:07]} 10. h4 {[%emt 0:00:21]} h5 {[%emt 0:00:12]} 11. f4 {[%emt 0:00:35]} Nh6 {[%emt 0:00:25]} 12. Bh3 {[%emt 0:00:06]} Rb8 {[%emt 0:00:23]} 13. a4 {[%emt 0:00:53]} Qa5 {[%emt 0:00:40]} 14. Qd3 {[%emt 0:01:33]} Nb6 {[%emt 0:02:30]} 15. Bd2 {[%emt 0:00:19]} Qb4 {[%emt 0:06:47]} 16. Bf1 {[%emt 0:02:08]} Nd7 {[%emt 0:00:00]} 17. Ra2 {[%emt 0:03:23]} Qb3 {[%emt 0:01:45]} 18. a5 {[%emt 0:03:28]} O-O {[%emt 0:01:15]} 19. Ra3 {[%emt 0:01:27]} Qxb2 {[%emt 0:00:23]} 20. Nd1 {[%emt 0:00:03]} Qd4 {[%emt 0:00:16]} 21. Qe2 {[%emt 0:00:11]} Qf6 {[%emt 0:01:02]} 22. Bh3 {[%emt 0:00:41]} Nf5 {[%emt 0:00:33]} 23. Bc3 {[%emt 0:01:48]} e5 {[%emt 0:00:01]} 24. Ne3 {[%emt 0:00:12]} Rfe8 {[%emt 0:02:39]} 25. Bxf5 {[%emt 0:00:39]} gxf5 {[%emt 0:00:09]} 26. Qxh5 {[%emt 0:00:02]} Qg6 {[%emt 0:00:11]} 27. Qxf5 {[%emt 0:00:24]} Qxf5 {[%emt 0:00:28]} 28. Nxf5 {[%emt 0:00:01]} exf4+ {[%emt 0:00:01]} 29. Kd2 {[%emt 0:00:14]} Bxc3+ {[%emt 0:00:20]} 30. Rxc3 {[%emt 0:00:01]} b5 {[%emt 0:00:08]} 31. Nxd6 {[%emt 0:00:21]} Red8 {[%emt 0:00:01]} 32. gxf4 {[%emt 0:00:51]} Nf6 {[%emt 0:00:01]} 33. Rg3+ {[%emt 0:00:08]} Kf8 {[%emt 0:00:01]} 34. Nf5 {[%emt 0:00:01]} Ne4+ {[%emt 0:00:00]} 35. Kc2 {[%emt 0:00:06]} Nxg3 {[%emt 0:00:02]} 36. fxg3 {[%emt 0:00:01]} bxc4 {[%emt 0:00:09]} 37. d6 {[%emt 0:00:01]} Rb5 {[%emt 0:00:12]} 38. h5 {[%emt 0:00:02]} Rxa5 39. h6 {[%emt 0:00:00]} Kg8 {[%emt 0:00:05]} 40. Rb1 {[%emt 0:00:26]} Rb5 {[%emt 0:00:09]} 41. Re1 {[%emt 0:00:01]} Rb6 {[%emt 0:00:13]} 42. Rd1 {[%emt 0:00:11]} Kh7 {[%emt 0:00:05]} 43. g4 {[%emt 0:00:05]} Rd7 {[%emt 0:00:07]} 44. Rd5 {[%emt 0:00:03]} c3 {[%emt 0:00:04]} 45. Rxc5 {[%emt 0:00:05]} Rbxd6 {[%emt 0:00:04]} 46. Nxd6 {[%emt 0:00:01]} Rxd6 {[%emt 0:00:01]} 47. g5 {[%emt 0:00:00]} Kg6 {[%emt 0:00:11]} 48. Kxc3 {[%emt 0:00:12]} f6 {[%emt 0:00:04]} 49. Kb4 {[%emt 0:00:09]} fxg5 {[%emt 0:00:05]} 50. fxg5 {[%emt 0:00:00]} Re6 {[%emt 0:00:06]} 51. Ka5 {[%emt 0:00:02]} Rd6 {[%emt 0:00:01]} 52. Re5 {[%emt 0:00:00]} Rc6 {[%emt 0:00:01]} 53. Kb4 {[%emt 0:00:01]} Rd6 {[%emt 0:00:01]} 54. Kc5 {[%emt 0:00:01]} Rd1 {[%emt 0:00:03]} 55. Rd5 {[%emt 0:00:06]} Rb1 {[%emt 0:00:04]} 56. Kd6 {[%emt 0:00:13]} Ra1 {[%emt 0:00:01]} 57. Ke7 {[%emt 0:00:09]} a5 {[%emt 0:00:01]} 58. Kf8 {[%emt 0:00:12]} Kh7 {[%emt 0:00:13]} 59. Rd7+ {[%emt 0:00:05]} Kh8 {[%emt 0:00:04]} 60. g6 {[%emt 0:00:04]} Rf1+ {[%emt 0:00:01]} 61. Rf7 {[%emt 0:00:01]} 1-0

[Event "HUN-ch Rapid 2018"]
[Site "Ajka"]
[Date "2018.07.22"]
[Round "13"]
[White "Csonka, Attila Istvan"]
[Black "Kovacs, Elod"]
[Result "1-0"]
[ECO "B12"]
[WhiteElo "2337"]
[BlackElo "2061"]
[Annotator "NA"]
[PlyCount "61"]
[EventDate "2018.07.20"]
[EventType "swiss"]
[EventCountry "HUN"]
[SourceTitle "playchess.com"]
[Source "ChessBase"]
[SourceQuality "1"]
[TimeControl "1200+5"]

1. e4 {[%emt 0:00:06]} c6 {[%emt 0:00:05]} 2. d4 d5 3. Nd2 {[%emt 0:00:05]} a6 {[%emt 0:00:02]} 4. e5 {[%emt 0:00:12]} Bf5 {[%emt 0:00:07]} 5. h4 {[%emt 0:00:09]} h6 {[%emt 0:00:03]} 6. Nh3 {[%emt 0:00:26]} e6 {[%emt 0:00:04]} 7. Nf4 {[%emt 0:00:05]} c5 {[%emt 0:00:05]} 8. c3 {[%emt 0:00:02]} Nc6 {[%emt 0:00:18]} 9. Nf3 {[%emt 0:00:18]} Bg4 {[%emt 0:00:04]} 10. Be2 {[%emt 0:00:09]} Qb6 {[%emt 0:00:04]} 11. Be3 {[%emt 0:01:00]} Bxf3 {[%emt 0:00:06]} 12. Bxf3 {[%emt 0:00:02]} cxd4 {[%emt 0:00:01]} 13. cxd4 {[%emt 0:00:07]} Bb4+ {[%emt 0:00:01]} 14. Kf1 {[%emt 0:00:02]} Qc7 {[%emt 0:01:40]} 15. Nh5 {[%emt 0:00:17]} Bf8 {[%emt 0:01:07]} 16. g3 {[%emt 0:00:11]} Nge7 {[%emt 0:00:09]} 17. Bg4 {[%emt 0:00:19]} O-O-O {[%emt 0:01:08]} 18. Kg2 {[%emt 0:00:05]} g6 {[%emt 0:00:07]} 19. Nf4 {[%emt 0:00:15]} Qd7 {[%emt 0:01:32]} 20. a3 {[%emt 0:00:20]} h5 {[%emt 0:00:29]} 21. Be2 {[%emt 0:00:05]} Nf5 {[%emt 0:00:03]} 22. b4 {[%emt 0:00:15]} g5 {[%emt 0:01:25]} 23. hxg5 {[%emt 0:00:13]} Be7 {[%emt 0:00:33]} 24. b5 {[%emt 0:00:20]} axb5 {[%emt 0:00:02]} 25. Bxb5 {[%emt 0:00:01]} Bxg5 {[%emt 0:00:03]} 26. Qa4 {[%emt 0:01:14]} Kb8 {[%emt 0:01:35]} 27. Rab1 {[%emt 0:00:29]} Rc8 {[%emt 0:00:02]} 28. Rhc1 {[%emt 0:00:15]} Nfe7 {[%emt 0:00:11]} 29. Nd3 {[%emt 0:00:32]} Bxe3 {[%emt 0:00:11]} 30. fxe3 {[%emt 0:00:27]} Qc7 {[%emt 0:01:01]} 31. Ba6 {[%emt 0:01:58]} 1-0

[Event "HUN-ch Rapid 2018"]
[Site "Ajka"]
[Date "2018.07.22"]
[Round "13"]
[White "Papp, Gellert"]
[Black "Juhasz, Judit"]
[Result "0-1"]
[ECO "B35"]
[WhiteElo "2324"]
[BlackElo "1877"]
[Annotator "NA"]
[PlyCount "94"]
[EventDate "2018.07.20"]
[EventType "swiss"]
[EventCountry "HUN"]
[SourceTitle "playchess.com"]
[Source "ChessBase"]
[SourceQuality "1"]
[TimeControl "1200+5"]

1. e4 {[%emt 0:00:01]} c5 {[%emt 0:00:06]} 2. Nf3 {[%emt 0:00:02]} Nc6 {[%emt 0:00:01]} 3. d4 {[%emt 0:00:00]} cxd4 {[%emt 0:00:01]} 4. Nxd4 {[%emt 0:00:01]} g6 {[%emt 0:00:01]} 5. Nc3 {[%emt 0:00:02]} Bg7 {[%emt 0:00:01]} 6. Be3 {[%emt 0:00:01]} Nf6 {[%emt 0:00:01]} 7. Bc4 {[%emt 0:00:01]} Qa5 {[%emt 0:00:01]} 8. O-O {[%emt 0:00:52]} O-O {[%emt 0:00:03]} 9. Bb3 {[%emt 0:00:06]} d6 {[%emt 0:00:02]} 10. h3 {[%emt 0:00:07]} Bd7 {[%emt 0:00:03]} 11. Nf3 {[%emt 0:01:24]} Rac8 {[%emt 0:00:25]} 12. Re1 {[%emt 0:00:25]} b5 {[%emt 0:01:47]} 13. a3 {[%emt 0:01:02]} a6 {[%emt 0:01:51]} 14. Qd2 {[%emt 0:02:11]} Rfe8 {[%emt 0:01:33]} 15. Bg5 {[%emt 0:00:49]} Qd8 {[%emt 0:00:51]} 16. Rad1 {[%emt 0:00:37]} Be6 {[%emt 0:03:29]} 17. Qe3 {[%emt 0:04:54]} Bxb3 {[%emt 0:01:43]} 18. cxb3 {[%emt 0:00:03]} Nd7 {[%emt 0:01:12]} 19. Bh6 {[%emt 0:03:31]} Bh8 {[%emt 0:00:11]} 20. Ng5 {[%emt 0:00:04]} Qb6 {[%emt 0:01:14]} 21. Qf4 {[%emt 0:00:09]} Nce5 {[%emt 0:00:41]} 22. Qh4 {[%emt 0:00:26]} Bf6 {[%emt 0:03:00]} 23. Nd5 {[%emt 0:00:03]} Qd8 {[%emt 0:00:53]} 24. f4 {[%emt 0:01:27]} Bxg5 {[%emt 0:00:36]} 25. Bxg5 {[%emt 0:00:05]} f6 {[%emt 0:00:13]} 26. fxe5 {[%emt 0:01:17]} fxg5 {[%emt 0:00:02]} 27. Qxg5 {[%emt 0:00:07]} Nxe5 {[%emt 0:00:03]} 28. Rc1 {[%emt 0:00:20]} Nf7 {[%emt 0:01:05]} 29. Qh4 {[%emt 0:00:46]} Rc5 {[%emt 0:00:37]} 30. b4 {[%emt 0:00:18]} Rc4 {[%emt 0:00:26]} 31. b3 {[%emt 0:00:03]} Rxc1 {[%emt 0:00:03]} 32. Rxc1 {[%emt 0:00:01]} g5 {[%emt 0:00:08]} 33. Qh5 {[%emt 0:00:09]} e6 {[%emt 0:00:10]} 34. Rc7 {[%emt 0:01:06]} Rf8 {[%emt 0:00:10]} 35. Ne7+ {[%emt 0:00:03]} Kg7 {[%emt 0:00:06]} 36. Rb7 {[%emt 0:00:14]} Qa8 {[%emt 0:00:06]} 37. Rc7 {[%emt 0:00:05]} Qb8 {[%emt 0:00:03]} 38. Rc1 {[%emt 0:00:08]} Qb6+ {[%emt 0:00:05]} 39. Kh1 {[%emt 0:00:01]} Qe3 {[%emt 0:00:01]} 40. Qf3 {[%emt 0:00:05]} Qxf3 {[%emt 0:00:02]} 41. gxf3 {[%emt 0:00:00]} Ne5 {[%emt 0:00:02]} 42. Kg2 {[%emt 0:00:17]} Rxf3 {[%emt 0:00:06]} 43. Nc6 {[%emt 0:00:04]} Rxb3 {[%emt 0:00:03]} 44. Nxe5 {[%emt 0:00:01]} dxe5 {[%emt 0:00:01]} 45. Rc6 {[%emt 0:00:03]} Rxa3 {[%emt 0:00:15]} 46. Rxe6 {[%emt 0:00:01]} Ra4 {[%emt 0:00:00]} 47. Rxa6 {[%emt 0:00:02]} Rxa6 {[%emt 0:00:02]} 0-1

[Event "HUN-ch Rapid 2018"]
[Site "Ajka"]
[Date "2018.07.22"]
[Round "13"]
[White "Szelenyi, Norbert"]
[Black "Teglas, Balazs"]
[Result "1/2-1/2"]
[ECO "A37"]
[WhiteElo "2284"]
[BlackElo "2201"]
[Annotator "NA"]
[PlyCount "56"]
[EventDate "2018.07.20"]
[EventType "swiss"]
[EventCountry "HUN"]
[SourceTitle "playchess.com"]
[Source "ChessBase"]
[SourceQuality "1"]
[TimeControl "1200+5"]

1. c4 {[%emt 0:00:04]} c5 {[%emt 0:00:27]} 2. g3 {[%emt 0:00:14]} Nc6 {[%emt 0:00:02]} 3. Bg2 {[%emt 0:00:02]} g6 {[%emt 0:00:01]} 4. Nc3 {[%emt 0:00:18]} Bg7 {[%emt 0:00:02]} 5. Nf3 {[%emt 0:00:23]} e5 {[%emt 0:00:02]} 6. d3 {[%emt 0:00:54]} Nge7 {[%emt 0:00:04]} 7. O-O {[%emt 0:00:06]} O-O {[%emt 0:00:02]} 8. Ne1 {[%emt 0:00:03]} a6 {[%emt 0:00:33]} 9. Nc2 {[%emt 0:00:10]} Rb8 {[%emt 0:00:02]} 10. Rb1 {[%emt 0:00:22]} b5 {[%emt 0:00:10]} 11. Ne3 {[%emt 0:00:12]} b4 {[%emt 0:00:26]} 12. Ncd5 {[%emt 0:00:02]} d6 {[%emt 0:00:35]} 13. Qa4 {[%emt 0:04:17]} Nd4 {[%emt 0:04:04]} 14. Nxe7+ {[%emt 0:00:05]} Qxe7 {[%emt 0:00:00]} 15. Qd1 {[%emt 0:00:15]} Bd7 {[%emt 0:03:19]} 16. Nd5 {[%emt 0:00:10]} Qd8 {[%emt 0:00:01]} 17. e3 {[%emt 0:00:17]} Nc6 {[%emt 0:00:01]} 18. Bd2 {[%emt 0:01:17]} Ne7 {[%emt 0:00:46]} 19. Qc2 {[%emt 0:04:26]} Nxd5 {[%emt 0:00:46]} 20. Bxd5 {[%emt 0:00:02]} Kh8 {[%emt 0:01:10]} 21. b3 {[%emt 0:00:21]} a5 {[%emt 0:00:12]} 22. a4 {[%emt 0:01:06]} f5 {[%emt 0:02:04]} 23. f4 {[%emt 0:00:14]} exf4 {[%emt 0:00:38]} 24. gxf4 {[%emt 0:00:05]} Qe7 {[%emt 0:01:21]} 25. Qd1 {[%emt 0:00:06]} Bc3 {[%emt 0:00:39]} 26. Qe1 {[%emt 0:02:16]} Bxd2 {[%emt 0:00:07]} 27. Qxd2 {[%emt 0:00:00]} Rbe8 {[%emt 0:00:03]} 28. Qb2+ {[%emt 0:00:33]} Qg7 {[%emt 0:00:02]} 1/2-1/2

[Event "HUN-ch Rapid 2018"]
[Site "Ajka"]
[Date "2018.07.22"]
[Round "13"]
[White "Egresi, Mate"]
[Black "Hajnal, Zoltan"]
[Result "1-0"]
[ECO "D12"]
[WhiteElo "2280"]
[BlackElo "2357"]
[Annotator "NA"]
[PlyCount "79"]
[EventDate "2018.07.20"]
[EventType "swiss"]
[EventCountry "HUN"]
[SourceTitle "playchess.com"]
[Source "ChessBase"]
[SourceQuality "1"]
[TimeControl "1200+5"]

1. d4 {[%emt 0:00:01]} d5 {[%emt 0:00:06]} 2. c4 {[%emt 0:00:01]} c6 {[%emt 0:00:02]} 3. Nf3 {[%emt 0:00:09]} Nf6 {[%emt 0:00:02]} 4. e3 {[%emt 0:00:02]} Bf5 {[%emt 0:00:04]} 5. Nc3 {[%emt 0:00:02]} e6 {[%emt 0:00:03]} 6. Nh4 {[%emt 0:00:05]} Be4 {[%emt 0:00:05]} 7. f3 {[%emt 0:00:03]} Bg6 {[%emt 0:00:01]} 8. Qb3 {[%emt 0:00:06]} Qc7 {[%emt 0:00:01]} 9. Bd2 {[%emt 0:00:26]} Be7 {[%emt 0:00:01]} 10. Nxg6 {[%emt 0:00:17]} hxg6 {[%emt 0:00:02]} 11. O-O-O {[%emt 0:00:02]} Nbd7 {[%emt 0:00:09]} 12. cxd5 {[%emt 0:00:28]} exd5 {[%emt 0:00:44]} 13. h3 {[%emt 0:00:38]} b5 {[%emt 0:00:03]} 14. Bd3 {[%emt 0:00:18]} a5 {[%emt 0:00:17]} 15. Kb1 {[%emt 0:00:17]} Nb6 {[%emt 0:00:20]} 16. e4 {[%emt 0:00:34]} a4 {[%emt 0:01:08]} 17. Qc2 {[%emt 0:00:05]} b4 {[%emt 0:00:01]} 18. e5 {[%emt 0:01:38]} Nfd7 {[%emt 0:04:02]} 19. Nb5 {[%emt 0:00:52]} Qb7 {[%emt 0:00:01]} 20. Nd6+ {[%emt 0:00:05]} Bxd6 {[%emt 0:00:02]} 21. exd6 {[%emt 0:00:01]} O-O {[%emt 0:00:01]} 22. Bxb4 {[%emt 0:00:43]} Nc4 {[%emt 0:00:01]} 23. Qc3 {[%emt 0:00:43]} a3 {[%emt 0:02:23]} 24. Bxc4 {[%emt 0:00:17]} dxc4 {[%emt 0:00:01]} 25. Bxa3 {[%emt 0:00:25]} Nb6 {[%emt 0:00:16]} 26. Ka1 {[%emt 0:01:16]} Ra4 {[%emt 0:00:29]} 27. Rhe1 {[%emt 0:00:47]} Nd5 {[%emt 0:00:08]} 28. Qc2 {[%emt 0:00:06]} Rfa8 {[%emt 0:04:28]} 29. Re7 {[%emt 0:03:29]} Qa6 {[%emt 0:02:33]} 30. Rde1 {[%emt 0:00:55]} c3 {[%emt 0:00:39]} 31. Re8+ {[%emt 0:00:03]} Kh7 {[%emt 0:01:33]} 32. Rxa8 {[%emt 0:00:30]} Qxa8 {[%emt 0:00:02]} 33. d7 {[%emt 0:01:20]} cxb2+ {[%emt 0:00:01]} 34. Bxb2 {[%emt 0:01:34]} Nb4 {[%emt 0:01:13]} 35. Qe4 {[%emt 0:02:22]} Ra5 {[%emt 0:01:18]} 36. a3 Rxa3+ {[%emt 0:00:25]} 37. Bxa3 {[%emt 0:01:27]} Qxa3+ {[%emt 0:00:01]} 38. Kb1 {[%emt 0:00:00]} Qb3+ {[%emt 0:00:15]} 39. Kc1 {[%emt 0:00:01]} Nd3+ {[%emt 0:00:12]} 40. Kd2 {[%emt 0:00:08]} 1-0